[Event "ONJK DE"]
[Site "Enschede, Netherlands"]
[Date "2022.08.09"]
[Round "3.5"]
[White "Dijkhuijsen, Thomas"]
[Black "Van Haaften, Jelle"]
[Result "0-1"]
[TimeControl "40min + 30sec/move"]
[WhiteElo "1306"]
[BlackElo "992"]

1. e4 {[%clk 00:40:57]} {[%emt 00:00:02]} c6 {[%clk 00:40:58]} {[%emt
00:00:03]} 2. d4 {[%clk 00:41:17]} {[%emt 00:00:10]} d5 {[%clk 00:41:25]}
{[%emt 00:00:04]} 3. Nc3 {[%clk 00:41:42]} {[%emt 00:00:05]} g6 {[%clk
00:41:43]} {[%emt 00:00:11]} 4. Nf3 {[%clk 00:41:58]} {[%emt 00:00:14]} Bg7
{[%clk 00:42:08]} {[%emt 00:00:05]} 5. Be2 {[%clk 00:42:03]} {[%emt 00:00:25]}
Nf6 {[%clk 00:42:30]} {[%emt 00:00:08]} 6. e5 {[%clk 00:42:10]} {[%emt
00:00:23]} Nfd7 {[%clk 00:42:56]} {[%emt 00:00:04]} 7. O-O {[%clk 00:42:27]}
{[%emt 00:00:13]} O-O {[%clk 00:43:21]} {[%emt 00:00:05]} 8. Bf4 {[%clk
00:42:29]} {[%emt 00:00:28]} c5 {[%clk 00:43:40]} {[%emt 00:00:12]} 9. dxc5
{[%clk 00:42:15]} {[%emt 00:00:43]} e6 {[%clk 00:44:00]} {[%emt 00:00:10]} 10.
b4 {[%clk 00:41:58]} {[%emt 00:00:47]} Nc6 {[%clk 00:44:18]} {[%emt 00:00:12]}
11. Rb1 {[%clk 00:41:39]} {[%emt 00:00:49]} Ndxe5 {[%clk 00:44:25]} {[%emt
00:00:23]} 12. Nxe5 {[%clk 00:41:38]} {[%emt 00:00:30]} Nxe5 {[%clk 00:44:36]}
{[%emt 00:00:19]} 13. Nb5 {[%clk 00:41:26]} {[%emt 00:00:42]} b6 {[%clk
00:42:42]} {[%emt 00:02:25]} 14. Bxe5 {[%clk 00:38:56]} {[%emt 00:03:00]} Bxe5
{[%clk 00:42:54]} {[%emt 00:00:18]} 15. c6 {[%clk 00:38:25]} {[%emt 00:01:01]}
Ba6 {[%clk 00:42:27]} {[%emt 00:00:56]} 16. Na3 {[%clk 00:38:28]} {[%emt
00:00:27]} Bxe2 {[%clk 00:42:22]} {[%emt 00:00:36]} 17. Qxe2 {[%clk 00:38:49]}
{[%emt 00:00:09]} Bd6 {[%clk 00:42:47]} {[%emt 00:00:05]} 18. Nb5 {[%clk
00:38:36]} {[%emt 00:00:43]} a6 {[%clk 00:42:34]} {[%emt 00:00:43]} 19. Nd4
{[%clk 00:37:39]} {[%emt 00:01:26]} b5 {[%clk 00:41:16]} {[%emt 00:01:49]} 20.
Nf3 {[%clk 00:36:24]} {[%emt 00:01:44]} Rc8 {[%clk 00:39:23]} {[%emt 00:02:24]}
21. Ne5 {[%clk 00:35:39]} {[%emt 00:01:14]} Bxe5 {[%clk 00:39:16]} {[%emt
00:00:37]} 22. Qxe5 {[%clk 00:35:47]} {[%emt 00:00:22]} Rxc6 {[%clk 00:39:36]}
{[%emt 00:00:10]} 23. c3 {[%clk 00:35:20]} {[%emt 00:00:57]} Qc7 {[%clk
00:39:23]} {[%emt 00:00:44]} 24. Qxc7 {[%clk 00:35:26]} {[%emt 00:00:23]} Rxc7
{[%clk 00:39:46]} {[%emt 00:00:08]} 25. Rbc1 {[%clk 00:35:42]} {[%emt
00:00:14]} Rfc8 {[%clk 00:40:09]} {[%emt 00:00:07]} 26. Rfe1 {[%clk 00:34:47]}
{[%emt 00:01:25]} Rxc3 {[%clk 00:40:26]} {[%emt 00:00:13]} 27. Rxc3 {[%clk
00:35:06]} {[%emt 00:00:11]} Rxc3 {[%clk 00:40:48]} {[%emt 00:00:08]} 28. g3
{[%clk 00:35:14]} {[%emt 00:00:21]} Rc2 {[%clk 00:41:08]} {[%emt 00:00:11]} 29.
a3 {[%clk 00:35:08]} {[%emt 00:00:36]} d4 {[%clk 00:41:21]} {[%emt 00:00:17]}
30. Re4 {[%clk 00:34:39]} {[%emt 00:00:58]} d3 {[%clk 00:41:07]} {[%emt
00:00:44]} 31. Rd4 {[%clk 00:34:19]} {[%emt 00:00:50]} Rc3 {[%clk 00:41:01]}
{[%emt 00:00:36]} 32. Kf1 {[%clk 00:34:20]} {[%emt 00:00:29]} Rxa3 {[%clk
00:41:01]} {[%emt 00:00:29]} 33. Ke1 {[%clk 00:34:43]} {[%emt 00:00:08]} Ra1+
{[%clk 00:41:13]} {[%emt 00:00:18]} 34. Kd2 {[%clk 00:34:58]} {[%emt 00:00:15]}
Rh1 {[%clk 00:41:37]} {[%emt 00:00:06]} 35. h4 {[%clk 00:35:07]} {[%emt
00:00:21]} Rb1 {[%clk 00:41:49]} {[%emt 00:00:19]} 36. Kxd3 {[%clk 00:35:07]}
{[%emt 00:00:30]} Kg7 {[%clk 00:42:02]} {[%emt 00:00:17]} 37. Kc3 {[%clk
00:34:11]} {[%emt 00:01:26]} e5 {[%clk 00:41:28]} {[%emt 00:01:05]} 38. Rd6
{[%clk 00:34:08]} {[%emt 00:00:33]} Rf1 {[%clk 00:41:18]} {[%emt 00:00:39]} 39.
Rd2 {[%clk 00:33:25]} {[%emt 00:01:13]} Kf6 {[%clk 00:40:28]} {[%emt 00:01:20]}
40. Ra2 {[%clk 00:33:28]} {[%emt 00:00:28]} Kf5 {[%clk 00:40:24]} {[%emt
00:00:34]} 41. Rxa6 {[%clk 00:32:46]} {[%emt 00:01:12]} Rxf2 {[%clk 00:40:37]}
{[%emt 00:00:17]} 42. Ra5 {[%clk 00:32:10]} {[%emt 00:01:06]} Rf3+ {[%clk
00:40:24]} {[%emt 00:00:43]} 43. Kd2 {[%clk 00:32:24]} {[%emt 00:00:15]} Rxg3
{[%clk 00:40:39]} {[%emt 00:00:15]} 44. Rxb5 {[%clk 00:32:25]} {[%emt
00:00:30]} Ke4 {[%clk 00:40:29]} {[%emt 00:00:40]} 45. Rc5 {[%clk 00:32:25]}
{[%emt 00:00:30]} Rb3 {[%clk 00:40:29]} {[%emt 00:00:30]} 46. Rb5 {[%clk
00:32:12]} {[%emt 00:00:42]} f5 {[%clk 00:40:45]} {[%emt 00:00:14]} 47. Kc2
{[%clk 00:32:27]} {[%emt 00:00:16]} Rd3 {[%clk 00:40:59]} {[%emt 00:00:15]} 48.
Rb7 {[%clk 00:32:31]} {[%emt 00:00:26]} Rd4 {[%clk 00:40:33]} {[%emt 00:00:57]}
49. b5 {[%clk 00:32:08]} {[%emt 00:00:53]} f4 {[%clk 00:40:45]} {[%emt
00:00:18]} 50. b6 {[%clk 00:31:56]} {[%emt 00:00:42]} Rb4 {[%clk 00:41:00]}
{[%emt 00:00:14]} 51. Kc3 {[%clk 00:30:50]} {[%emt 00:01:36]} Rb1 {[%clk
00:41:19]} {[%emt 00:00:11]} 52. Kc2 {[%clk 00:31:01]} {[%emt 00:00:19]} Rb5
{[%clk 00:41:41]} {[%emt 00:00:08]} 53. Rxh7 {[%clk 00:30:12]} {[%emt
00:01:18]} Rxb6 {[%clk 00:41:58]} {[%emt 00:00:14]} 54. Rh6 {[%clk 00:30:16]}
{[%emt 00:00:26]} Kf5 {[%clk 00:42:05]} {[%emt 00:00:23]} 55. h5 {[%clk
00:29:56]} {[%emt 00:00:51]} Kg5 {[%clk 00:41:51]} {[%emt 00:00:44]} 56. Rxg6+
{[%clk 00:30:09]} {[%emt 00:00:17]} Rxg6 {[%clk 00:42:11]} {[%emt 00:00:10]} 57.
hxg6 {[%clk 00:30:32]} {[%emt 00:00:06]} Kxg6 {[%clk 00:42:34]} {[%emt
00:00:07]} 58. Kd3 {[%clk 00:31:01]} {[%emt 00:00:02]} Kf5 {[%clk 00:42:47]}
{[%emt 00:00:17]} 59. Kc2 {[%clk 00:31:23]} {[%emt 00:00:07]} f3 {[%clk
00:43:06]} {[%emt 00:00:12]} 60. Kd3 {[%clk 00:31:33]} {[%emt 00:00:19]} Kf4
{[%clk 00:43:20]} {[%emt 00:00:16]} 61. Kd2 {[%clk 00:31:32]} {[%emt 00:00:31]}
e4 {[%clk 00:43:34]} {[%emt 00:00:16]} 62. Kd1 {[%clk 00:31:31]} {[%emt
00:00:31]} Ke3 {[%clk 00:43:56]} {[%emt 00:00:08]} 63. Ke1 {[%clk 00:31:54]}
{[%emt 00:00:07]} Kf4 {[%clk 00:44:15]} {[%emt 00:00:12]} 64. Kf2 {[%clk
00:32:04]} {[%emt 00:00:19]} e3+ {[%clk 00:44:35]} {[%emt 00:00:10]} 65. Ke1
{[%clk 00:32:02]} {[%emt 00:00:32]} f2+ {[%clk 00:44:57]} {[%emt 00:00:08]} 66.
Ke2 {[%clk 00:31:58]} {[%emt 00:00:35]} Kg3 {[%emt 00:00:16]} 67. Kf1 {[%clk
00:32:16]} {[%emt 00:00:10]} e2+ {[%clk 00:45:32]} {[%emt 00:00:11]} 68. Kxe2
{[%clk 00:32:42]} {[%emt 00:00:04]} Kg2 {[%clk 00:45:53]} {[%emt 00:00:09]} 69.
Kd2 {[%clk 00:32:55]} {[%emt 00:00:18]} f1=Q {[%emt 00:00:12]} 70. Ke3 {[%emt
00:00:10]} Qf2+ {[%clk 00:45:47]} {[%emt 00:00:13]} 71. Ke4 {[%clk 00:33:13]}
{[%emt 00:00:11]} Qf3+ {[%clk 00:46:11]} {[%emt 00:00:07]} 72. Kd4 {[%clk
00:33:27]} {[%emt 00:00:16]} Qe2 {[%clk 00:46:22]} {[%emt 00:00:19]} 73. Kd5
{[%clk 00:32:58]} {[%emt 00:00:59]} Qe3 {[%clk 00:46:42]} {[%emt 00:00:10]} 74.
Kc4 {[%clk 00:33:15]} {[%emt 00:00:13]} Qd2 {[%clk 00:46:57]} {[%emt 00:00:15]}
75. Kc5 {[%clk 00:33:30]} {[%emt 00:00:16]} Qd3 {[%clk 00:47:14]} {[%emt
00:00:13]} 76. Kb4 {[%clk 00:33:52]} {[%emt 00:00:06]} Qc2 {[%clk 00:47:29]}
{[%emt 00:00:17]} 77. Kb5 {[%clk 00:34:13]} {[%emt 00:00:09]} Qc3 {[%clk
00:47:47]} {[%emt 00:00:12]} 78. Kb6 {[%clk 00:34:27]} {[%emt 00:00:16]} Qc4
{[%clk 00:47:58]} {[%emt 00:00:19]} 79. Kb7 {[%clk 00:34:46]} {[%emt 00:00:10]}
Qc5 {[%clk 00:48:20]} {[%emt 00:00:08]} 80. Ka8 {[%clk 00:34:55]} {[%emt
00:00:21]} Qb5 {[%clk 00:48:43]} {[%emt 00:00:07]} 81. Ka7 {[%emt 00:00:19]}
Kf3 {[%clk 00:49:04]} 82. Ka8 {[%clk 00:35:37]} {[%emt 00:00:06]} Ke4 {[%clk
00:49:29]} {[%emt 00:00:07]} 83. Ka7 {[%clk 00:35:46]} {[%emt 00:00:21]} Kd5
{[%clk 00:49:51]} {[%emt 00:00:07]} 84. Ka8 {[%clk 00:36:05]} {[%emt 00:00:10]}
Kc6 {[%clk 00:50:19]} {[%emt 00:00:02]} 85. Ka7 {[%clk 00:36:29]} {[%emt
00:00:07]} Qb7# {[%clk 00:50:43]} {[%emt 00:00:05]} 0-1

[Event "ONJK DE"]
[Site "Enschede, Netherlands"]
[Date "2022.08.09"]
[Round "3.6"]
[White "Koppenens, Oscar (E)"]
[Black "Katpatal, Akshaj (E)"]
[Result "0-1"]
[TimeControl "40min + 30sec/move"]
[WhiteElo "1266"]
[BlackElo "1874"]

1. e4 {[%clk 00:40:41]} {[%emt 00:00:19]} e5 {[%clk 00:40:48]} {[%emt
00:00:12]} 2. Nf3 {[%clk 00:41:05]} {[%emt 00:00:06]} Nc6 {[%clk 00:41:13]}
{[%emt 00:00:05]} 3. Bc4 {[%clk 00:41:31]} {[%emt 00:00:04]} Bc5 {[%clk
00:41:38]} {[%emt 00:00:05]} 4. d4 {[%clk 00:41:56]} {[%emt 00:00:05]} Nxd4
{[%clk 00:41:24]} {[%emt 00:00:44]} 5. Nxe5 {[%clk 00:42:15]} {[%emt 00:00:12]}
Ne6 {[%clk 00:41:23]} {[%emt 00:00:31]} 6. O-O {[%clk 00:42:23]} {[%emt
00:00:22]} Nf6 {[%clk 00:40:16]} {[%emt 00:01:37]} 7. Nc3 {[%clk 00:41:40]}
{[%emt 00:01:12]} O-O {[%clk 00:39:18]} {[%emt 00:01:29]} 8. Na4 {[%clk
00:40:46]} {[%emt 00:01:24]} Be7 {[%clk 00:36:35]} {[%emt 00:03:13]} 9. Re1
{[%clk 00:40:08]} {[%emt 00:01:08]} d6 {[%clk 00:36:43]} {[%emt 00:00:22]} 10.
Nf3 {[%clk 00:40:20]} {[%emt 00:00:17]} c6 {[%clk 00:36:49]} {[%emt 00:00:25]}
11. Nc3 {[%clk 00:38:43]} {[%emt 00:02:06]} b6 {[%clk 00:36:20]} {[%emt
00:01:00]} 12. Be3 {[%clk 00:37:42]} {[%emt 00:01:29]} Bb7 {[%clk 00:35:50]}
{[%emt 00:01:01]} 13. Qe2 {[%clk 00:36:48]} {[%emt 00:01:25]} d5 {[%clk
00:35:48]} {[%emt 00:00:33]} 14. Rad1 {[%clk 00:36:22]} {[%emt 00:00:55]} Bb4
{[%clk 00:32:35]} {[%emt 00:03:43]} 15. exd5 {[%clk 00:34:05]} {[%emt
00:02:47]} cxd5 {[%clk 00:32:26]} {[%emt 00:00:38]} 16. Bb3 {[%clk 00:34:05]}
{[%emt 00:00:31]} Qc8 {[%clk 00:31:55]} {[%emt 00:01:01]} 17. Bd2 {[%clk
00:33:48]} {[%emt 00:00:46]} Bc5 {[%clk 00:30:43]} {[%emt 00:01:42]} 18. Be3
{[%clk 00:31:37]} {[%emt 00:02:41]} Bb4 {[%clk 00:28:34]} {[%emt 00:02:40]} 19.
Bd2 {[%clk 00:31:21]} {[%emt 00:00:45]} Ba6 {[%clk 00:25:15]} {[%emt 00:03:50]}
20. Qe5 {[%clk 00:29:51]} {[%emt 00:02:00]} Bc5 {[%clk 00:20:13]} {[%emt
00:05:32]} 21. h3 {[%clk 00:29:43]} {[%emt 00:00:38]} d4 {[%clk 00:18:52]}
{[%emt 00:01:50]} 22. Nd5 {[%clk 00:27:09]} {[%emt 00:03:03]} Nxd5 {[%clk
00:15:33]} {[%emt 00:03:48]} 23. Bxd5 {[%clk 00:26:54]} {[%emt 00:00:47]} Bb7
{[%clk 00:15:31]} {[%emt 00:00:33]} 24. Bxe6 {[%clk 00:25:25]} {[%emt
00:01:58]} Qxe6 {[%clk 00:15:44]} {[%emt 00:00:16]} 25. Qxe6 {[%clk 00:25:31]}
{[%emt 00:00:24]} fxe6 {[%clk 00:16:09]} {[%emt 00:00:06]} 26. Ng5 {[%clk
00:25:42]} {[%emt 00:00:10]} d3 {[%clk 00:16:15]} {[%emt 00:00:33]} 27. Be3
{[%clk 00:25:34]} {[%emt 00:00:38]} Bxe3 {[%clk 00:15:55]} {[%emt 00:00:50]} 28.
Rxe3 {[%clk 00:25:58]} {[%emt 00:00:06]} dxc2 {[%clk 00:16:18]} {[%emt
00:00:07]} 29. Rc1 {[%clk 00:26:18]} {[%emt 00:00:09]} Rac8 {[%clk 00:16:15]}
{[%emt 00:00:34]} 30. Rc3 {[%clk 00:26:33]} {[%emt 00:00:14]} Rxc3 {[%clk
00:16:30]} {[%emt 00:00:15]} 31. bxc3 {[%clk 00:26:54]} {[%emt 00:00:10]} Bd5
{[%clk 00:16:12]} {[%emt 00:00:48]} 32. Rxc2 {[%clk 00:27:07]} {[%emt
00:00:17]} h6 {[%clk 00:16:05]} {[%emt 00:00:36]} 33. c4 {[%clk 00:26:59]}
{[%emt 00:00:39]} Bxc4 {[%clk 00:16:00]} {[%emt 00:00:35]} 34. Rxc4 {[%clk
00:27:20]} {[%emt 00:00:09]} hxg5 {[%clk 00:16:25]} {[%emt 00:00:06]} 35. Rc7
{[%clk 00:27:33]} {[%emt 00:00:16]} Rf7 {[%clk 00:16:40]} {[%emt 00:00:14]} 36.
Rc8+ {[%clk 00:27:45]} {[%emt 00:00:19]} Kh7 {[%clk 00:17:02]} {[%emt
00:00:08]} 37. Re8 {[%clk 00:28:09]} {[%emt 00:00:05]} Rf6 {[%clk 00:16:59]}
{[%emt 00:00:33]} 38. f3 {[%clk 00:27:59]} {[%emt 00:00:40]} Kg6 {[%clk
00:17:22]} {[%emt 00:00:07]} 39. a4 {[%clk 00:28:12]} {[%emt 00:00:18]} Kf7
{[%clk 00:16:11]} {[%emt 00:01:41]} 40. Rb8 {[%clk 00:28:26]} {[%emt 00:00:15]}
Kg6 {[%clk 00:16:12]} {[%emt 00:00:30]} 41. Kf2 {[%clk 00:28:05]} {[%emt
00:00:51]} Rf7 {[%clk 00:16:14]} {[%emt 00:00:27]} 42. Ke3 {[%clk 00:28:19]}
{[%emt 00:00:16]} Kf5 {[%clk 00:16:21]} {[%emt 00:00:21]} 43. Rd8 {[%clk
00:27:38]} {[%emt 00:01:14]} Ke5 {[%clk 00:16:16]} {[%emt 00:00:35]} 44. g3
{[%clk 00:26:53]} {[%emt 00:01:15]} Rc7 {[%clk 00:16:13]} {[%emt 00:00:32]} 45.
f4+ {[%clk 00:26:19]} {[%emt 00:01:04]} gxf4+ {[%emt 00:00:15]} 46. gxf4+
{[%clk 00:26:44]} {[%emt 00:00:02]} Kf5 {[%clk 00:16:56]} {[%emt 00:00:05]} 47.
Rf8+ {[%clk 00:26:59]} {[%emt 00:00:15]} Kg6 {[%clk 00:17:20]} {[%emt
00:00:06]} 48. Ra8 {[%clk 00:26:36]} {[%emt 00:00:54]} a5 {[%clk 00:16:29]}
{[%emt 00:01:21]} 49. Kd4 {[%clk 00:26:36]} {[%emt 00:00:29]} Rf7 {[%clk
00:16:24]} {[%emt 00:00:36]} 50. Ke5 {[%clk 00:26:41]} {[%emt 00:00:26]} Rf5+
{[%clk 00:16:41]} {[%emt 00:00:12]} 51. Kxe6 {[%clk 00:27:08]} {[%emt
00:00:02]} Rxf4 {[%clk 00:17:04]} {[%emt 00:00:07]} 52. Rb8 {[%clk 00:27:08]}
{[%emt 00:00:31]} Kg5 {[%clk 00:17:13]} {[%emt 00:00:21]} 53. Rxb6 {[%clk
00:27:25]} {[%emt 00:00:13]} Rf6+ {[%clk 00:00:00]} {[%emt 00:00:19]} 0-1

[Event "ONJK DE"]
[Site "Enschede, Netherlands"]
[Date "2022.08.09"]
[Round "3.7"]
[White "Rudolph, Simon (E)"]
[Black "Leenen, Boyd (E)"]
[Result "1/2-1/2"]
[TimeControl "40min + 30sec/move"]
[WhiteElo "996"]
[BlackElo "1417"]

1. e4 {[%clk 00:41:00]} {[%emt 00:03:31]} e5 {[%clk 00:40:56]} {[%emt
00:00:05]} 2. Nf3 {[%clk 00:41:25]} {[%emt 00:00:05]} Nc6 {[%clk 00:41:22]}
{[%emt 00:00:04]} 3. Bb5 {[%clk 00:41:51]} {[%emt 00:00:03]} Nf6 {[%clk
00:41:43]} {[%emt 00:00:08]} 4. d3 {[%clk 00:42:14]} {[%emt 00:00:08]} a6
{[%clk 00:42:09]} {[%emt 00:00:05]} 5. Ba4 {[%clk 00:42:41]} {[%emt 00:00:03]}
b5 {[%clk 00:42:34]} {[%emt 00:00:04]} 6. Bb3 {[%clk 00:43:08]} {[%emt
00:00:04]} Bc5 {[%clk 00:43:01]} {[%emt 00:00:03]} 7. O-O {[%clk 00:43:31]}
{[%emt 00:00:06]} d6 {[%clk 00:43:26]} {[%emt 00:00:05]} 8. c3 {[%clk
00:43:53]} {[%emt 00:00:08]} Bg4 {[%clk 00:43:51]} {[%emt 00:00:05]} 9. Nbd2
{[%clk 00:44:15]} {[%emt 00:00:09]} O-O {[%clk 00:44:14]} {[%emt 00:00:06]} 10.
h3 {[%clk 00:44:43]} {[%emt 00:00:02]} Bh5 {[%clk 00:44:41]} {[%emt 00:00:04]}
11. Re1 {[%clk 00:45:03]} {[%emt 00:00:10]} Ba7 {[%clk 00:45:05]} {[%emt
00:00:06]} 12. Nf1 {[%clk 00:45:24]} {[%emt 00:00:08]} Na5 {[%clk 00:45:23]}
{[%emt 00:00:12]} 13. Bc2 {[%clk 00:45:48]} {[%emt 00:00:06]} c5 {[%clk
00:45:48]} {[%emt 00:00:05]} 14. Ng3 {[%clk 00:46:06]} {[%emt 00:00:11]} Bg6
{[%clk 00:46:13]} {[%emt 00:00:06]} 15. Bg5 {[%clk 00:45:50]} {[%emt 00:00:46]}
h6 {[%clk 00:46:34]} {[%emt 00:00:09]} 16. Be3 {[%clk 00:45:47]} {[%emt
00:00:32]} Nc6 {[%clk 00:46:50]} {[%emt 00:00:16]} 17. Rc1 {[%clk 00:45:13]}
{[%emt 00:00:59]} Nb8 {[%emt 00:01:01]} 1/2-1/2

[Event "ONJK DE"]
[Site "Enschede, Netherlands"]
[Date "2022.08.09"]
[Round "3.8"]
[White "Mittal, Aashray (E)"]
[Black "Peeters, Paul (E)"]
[Result "0-1"]
[TimeControl "40min + 30sec/move"]
[WhiteElo "1153"]
[BlackElo "1138"]

1. e4 {[%clk 00:41:00]} e5 {[%clk 00:40:54]} {[%emt 00:00:07]} 2. Nf3 {[%clk
00:41:26]} {[%emt 00:00:03]} Nc6 {[%clk 00:41:17]} {[%emt 00:00:07]} 3. d4
{[%clk 00:41:52]} {[%emt 00:00:03]} exd4 {[%clk 00:41:39]} {[%emt 00:00:08]} 4.
Nxd4 {[%clk 00:42:18]} {[%emt 00:00:05]} Nf6 {[%clk 00:42:03]} {[%emt
00:00:06]} 5. Nc3 {[%clk 00:42:41]} {[%emt 00:00:07]} Bb4 {[%clk 00:42:24]}
{[%emt 00:00:09]} 6. Nxc6 {[%clk 00:43:05]} {[%emt 00:00:05]} bxc6 {[%clk
00:40:03]} {[%emt 00:02:51]} 7. Bd3 {[%clk 00:43:29]} {[%emt 00:00:07]} d5
{[%clk 00:40:24]} {[%emt 00:00:09]} 8. exd5 {[%clk 00:43:33]} {[%emt 00:00:25]}
Bg4 {[%clk 00:40:14]} {[%emt 00:00:40]} 9. f3 {[%clk 00:43:46]} {[%emt
00:00:17]} Bh5 {[%clk 00:40:35]} {[%emt 00:00:09]} 10. dxc6 {[%clk 00:43:43]}
{[%emt 00:00:33]} Qd4 {[%clk 00:40:21]} {[%emt 00:00:44]} 11. Qe2+ {[%clk
00:43:22]} {[%emt 00:00:51]} Kf8 {[%clk 00:40:43]} {[%emt 00:00:08]} 12. Bd2
{[%clk 00:42:44]} {[%emt 00:01:08]} Re8 {[%clk 00:40:54]} {[%emt 00:00:17]} 13.
Ne4 {[%emt 00:02:15]} Nxe4 {[%clk 00:40:43]} {[%emt 00:00:08]} 14. Bxe4 {[%clk
00:41:53]} {[%emt 00:00:09]} Rxe4 {[%clk 00:41:00]} {[%emt 00:00:14]} 15. Qxe4
{[%clk 00:41:40]} {[%emt 00:00:43]} Qxd2+ {[%clk 00:40:56]} {[%emt 00:00:35]}
16. Kf1 {[%clk 00:42:01]} {[%emt 00:00:08]} Bg6 {[%clk 00:40:59]} {[%emt
00:00:27]} 17. Qe2 {[%clk 00:40:40]} {[%emt 00:01:51]} Bxc2 {[%clk 00:41:04]}
{[%emt 00:00:25]} 18. Qxd2 {[%clk 00:38:42]} {[%emt 00:02:28]} Bxd2 {[%clk
00:41:22]} {[%emt 00:00:12]} 19. Ke2 {[%clk 00:38:53]} {[%emt 00:00:19]} Bf4
{[%clk 00:41:04]} {[%emt 00:00:48]} 20. g3 {[%clk 00:38:32]} {[%emt 00:00:51]}
Bd6 {[%clk 00:41:08]} {[%emt 00:00:26]} 21. Rac1 {[%clk 00:38:40]} {[%emt
00:00:22]} Ba4 {[%clk 00:41:23]} {[%emt 00:00:16]} 22. b3 {[%clk 00:38:32]}
{[%emt 00:00:38]} Bb5+ {[%clk 00:41:39]} {[%emt 00:00:13]} 23. Kf2 {[%clk
00:38:49]} {[%emt 00:00:13]} g6 {[%clk 00:41:51]} {[%emt 00:00:18]} 24. Rhd1
{[%clk 00:33:58]} {[%emt 00:05:21]} Kg7 {[%clk 00:42:03]} {[%emt 00:00:18]} 25.
Rd5 {[%clk 00:33:04]} {[%emt 00:01:25]} Ba6 {[%clk 00:41:54]} {[%emt 00:00:38]}
26. Ra5 {[%clk 00:33:04]} {[%emt 00:00:29]} Bd3 {[%clk 00:41:23]} {[%emt
00:01:02]} 27. Rxa7 {[%clk 00:32:56]} {[%emt 00:00:39]} Re8 {[%clk 00:41:35]}
{[%emt 00:00:17]} 28. Ra5 {[%clk 00:31:56]} {[%emt 00:01:30]} Bb4 {[%clk
00:41:19]} {[%emt 00:00:47]} 29. Rd5 {[%clk 00:29:46]} {[%emt 00:02:39]} Bd2
{[%clk 00:40:41]} {[%emt 00:01:08]} 30. Rd1 {[%clk 00:29:19]} {[%emt 00:00:57]}
Re2+ {[%clk 00:40:40]} {[%emt 00:00:31]} 31. Kg1 {[%clk 00:27:59]} {[%emt
00:01:49]} Be3+ {[%clk 00:40:42]} {[%emt 00:00:29]} 32. Kh1 {[%clk 00:27:49]}
{[%emt 00:00:39]} Ba6 {[%clk 00:39:00]} {[%emt 00:02:12]} 33. Re5 {[%clk
00:25:42]} {[%emt 00:02:37]} h6 {[%clk 00:38:32]} {[%emt 00:00:58]} 34. Re7
{[%clk 00:24:08]} {[%emt 00:02:05]} Bc8 {[%emt 00:01:11]} 35. g4 {[%clk
00:22:44]} {[%emt 00:01:32]} h5 {[%clk 00:38:22]} {[%emt 00:00:21]} 36. Rxc7
{[%clk 00:22:47]} {[%emt 00:00:27]} Be6 {[%clk 00:38:27]} {[%emt 00:00:25]} 37.
h3 {[%clk 00:18:49]} {[%emt 00:04:27]} hxg4 {[%clk 00:38:05]} {[%emt 00:00:54]}
38. hxg4 {[%clk 00:19:00]} {[%emt 00:00:18]} Bf4 {[%clk 00:38:22]} {[%emt
00:00:46]} 39. Re7 {[%clk 00:19:37]} {[%emt 00:00:20]} Bxb3 {[%clk 00:38:20]}
{[%emt 00:00:31]} 40. Rxe2 {[%clk 00:19:40]} {[%emt 00:00:28]} Bxd1 {[%clk
00:38:35]} {[%emt 00:00:16]} 41. Re4 {[%clk 00:19:45]} {[%emt 00:00:24]} Bxf3+
{[%clk 00:38:57]} {[%emt 00:00:08]} 42. Kg1 {[%clk 00:20:07]} {[%emt 00:00:08]}
Bxe4 {[%emt 00:00:19]} 43. a4 {[%clk 00:20:26]} Bxc6 {[%clk 00:39:33]} {[%emt
00:00:16]} 44. a5 {[%clk 00:20:56]} Be3+ {[%clk 00:38:39]} {[%emt 00:01:24]} 45.
Kf1 {[%clk 00:21:17]} {[%emt 00:00:09]} Bd2 {[%clk 00:38:55]} {[%emt 00:00:15]}
0-1